fUST/lending_fUST_20250611
["ID","MTS","AMOUNT","RATE_DAILY","PERIOD"]
[365369879,1749622240137,-460.0,0.00021917,4]
[365369881,1749622240147,-1513.67,0.00021917,4]
[365369883,1749622240156,-460.0,0.00021917,4]
[365369885,1749622240166,-460.0,0.00021917,4]
[365369887,1749622240176,-547.36,0.00021917,4]
[365369889,1749622240186,-460.0,0.00021917,4]
[365369891,1749622240196,-626.24,0.00021917,4]
[365369893,1749622240206,-1824.46,0.00021917,4]
[365369895,1749622240215,-460.0,0.00021917,4]
[365369897,1749622240224,-487.3,0.00021917,4]
[365369899,1749622240233,-547.88,0.00021917,4]
[365369901,1749622240243,-1140.85,0.00021917,4]
[365369903,1749622240252,-902.14,0.00021917,4]
[365369905,1749622240261,-635.33,0.00021917,4]
[365369907,1749622240271,-460.0,0.00021917,4]
[365369909,1749622240280,-1792.05,0.00021917,4]
[365369911,1749622240289,-460.0,0.00021917,4]
[365369913,1749622240301,-1640.75,0.00021917,4]
[365369915,1749622240313,-1600.24,0.00021917,4]
[365369917,1749622240323,-832.83,0.00021917,4]
[365369919,1749622240332,-460.0,0.00021917,4]
[365369921,1749622240343,-524.58,0.00021917,4]
[365369923,1749622240353,-516.48314463,0.00021937,2]
[365369925,1749622240362,-233.57305908,0.00021937,2]
[365369928,1749622240375,-173.25,0.00021937,2]
[365369930,1749622240388,-545.14000734,0.00022,18]
[365369932,1749622240402,-350.84,0.00022,7]
[365369935,1749622240415,-630.46691564,0.00022003,6]
[365369937,1749622240428,-713.59,0.00022034,2]
[365369940,1749622240440,-264.97096154,0.00022102,2]
[365369942,1749622240450,-630.46691564,0.00022107,6]
[365369944,1749622240462,-460.0,0.00022191,4]
[365369946,1749622240475,-672.32,0.00022191,4]
[365369948,1749622240486,-460.0,0.00022191,4]
[365369951,1749622240497,-739.66,0.00022191,4]
[365369953,1749622240510,-733.27,0.00022191,4]
[365369955,1749622240522,-460.0,0.00022191,4]
[365369957,1749622240533,-1513.67,0.00022191,4]
[365369960,1749622240544,-460.0,0.00022191,4]
[365369962,1749622240556,-460.0,0.00022191,4]
[365369964,1749622240568,-547.36,0.00022191,4]
[365369966,1749622240579,-460.0,0.00022191,4]
[365369969,1749622240593,-626.24,0.00022191,4]
[365369971,1749622240605,-1824.46,0.00022191,4]
[365369973,1749622240616,-460.0,0.00022191,4]
[365369975,1749622240627,-487.3,0.00022191,4]
[365369978,1749622240640,-547.88,0.00022191,4]
[365369980,1749622240652,-1140.85,0.00022191,4]
[365369982,1749622240664,-902.14,0.00022191,4]
[365369985,1749622240676,-635.33,0.00022191,4]
[365369987,1749622240688,-460.0,0.00022191,4]
[365369989,1749622240701,-1792.05,0.00022191,4]
[365369991,1749622240712,-460.0,0.00022191,4]
[365369994,1749622240724,-1640.75,0.00022191,4]
[365369996,1749622240734,-1600.24,0.00022191,4]
[365369998,1749622240744,-832.83,0.00022191,4]
[365370000,1749622240756,-460.0,0.00022191,4]
[365370002,1749622240768,-524.58,0.00022191,4]
[365370004,1749622240778,-173.61221487,0.000222,69]
[365370007,1749622240790,-302.60882944,0.00022208,2]
[365370009,1749622240802,-630.46691564,0.0002221,6]
[365370011,1749622240813,-630.46691564,0.00022314,7]
[365370013,1749622240825,-213.16534259,0.00022373,2]
[365370015,1749622240836,-844.64040732,0.00022373,2]
[365370017,1749622240848,-424.19973472,0.00022373,2]
[365370020,1749622240861,-160.0,0.00022373,2]
[365370022,1749622240873,-835.03886221,0.00022373,2]
[365370024,1749622240887,-160.0,0.00022373,2]
[365370027,1749622240899,-160.0,0.00022373,2]
[365370029,1749622240912,-229.71724145,0.00022373,2]
[365370031,1749622240923,-630.46691564,0.00022417,7]
[365370033,1749622240933,-400.0,0.00022465,4]
[365370035,1749622240943,-460.0,0.00022465,4]
[365370037,1749622240953,-672.32,0.00022465,4]
[365370039,1749622240964,-460.0,0.00022465,4]
[365370041,1749622240976,-739.66,0.00022465,4]
[365370044,1749622240989,-733.27,0.00022465,4]
[365370046,1749622241002,-460.0,0.00022465,4]
[365370048,1749622241013,-1513.67,0.00022465,4]
[365370051,1749622241025,-460.0,0.00022465,4]
[365370053,1749622241036,-460.0,0.00022465,4]
[365370055,1749622241045,-547.36,0.00022465,4]
[365370057,1749622241057,-460.0,0.00022465,4]
[365370059,1749622241068,-626.24,0.00022465,4]
[365370061,1749622241078,-1824.46,0.00022465,4]
[365370064,1749622241090,-487.3,0.00022465,4]
[365370066,1749622241103,-460.0,0.00022465,4]
[365370068,1749622241114,-547.88,0.00022465,4]
[365370070,1749622241124,-1140.85,0.00022465,4]
[365370072,1749622241135,-902.14,0.00022465,4]
[365370074,1749622241146,-635.33,0.00022465,4]
[365370076,1749622241156,-460.0,0.00022465,4]
[365370079,1749622241168,-1792.05,0.00022465,4]
[365370081,1749622241179,-460.0,0.00022465,4]
[365370083,1749622241189,-1640.75,0.00022465,4]
[365370085,1749622241200,-1600.24,0.00022465,4]
[365370087,1749622241211,-832.83,0.00022465,4]
[365370090,1749622241222,-460.0,0.00022465,4]
[365370092,1749622241233,-524.58,0.00022465,4]
[365370094,1749622241244,-630.46691564,0.00022521,7]
[365370096,1749622241255,-251.90439083,0.00022558,2]
[365370098,1749622241266,-630.46691564,0.00022624,7]
[365370101,1749622241277,-264.97096154,0.00022656,2]
[365370103,1749622241287,-630.46691564,0.00022728,7]
[365370105,1749622241302,-354.0,0.00022738,2]
[365370107,1749622241313,-460.0,0.00022739,4]
[365370109,1749622241323,-672.32,0.00022739,4]
[365370111,1749622241334,-460.0,0.00022739,4]
[365370113,1749622241346,-739.66,0.00022739,4]
[365370116,1749622241357,-733.27,0.00022739,4]
[365370118,1749622241368,-460.0,0.00022739,4]
[365370120,1749622241380,-1513.67,0.00022739,4]
[365370122,1749622241391,-460.0,0.00022739,4]
[365370124,1749622241403,-247.15016363,0.00022739,4]
[365370126,1749622241413,-547.36,0.00022739,4]
[365370129,1749622241424,-460.0,0.00022739,4]
[365370131,1749622241435,-626.24,0.00022739,4]
[365370133,1749622241446,-1824.46,0.00022739,4]
[365370135,1749622241456,-487.3,0.00022739,4]
[365370137,1749622241467,-460.0,0.00022739,4]
[365370139,1749622241478,-547.88,0.00022739,4]
[365370141,1749622241489,-1140.85,0.00022739,4]
[365370144,1749622241499,-902.14,0.00022739,4]
[365370146,1749622241510,-635.33,0.00022739,4]
[365370148,1749622241520,-460.0,0.00022739,4]
[365370150,1749622241531,-1792.05,0.00022739,4]
[365370152,1749622241541,-460.0,0.00022739,4]
[365370154,1749622241552,-1640.75,0.00022739,4]
[365370156,1749622241563,-1600.24,0.00022739,4]
[365370159,1749622241574,-832.83,0.00022739,4]
[365370161,1749622241585,-460.0,0.00022739,4]
[365370163,1749622241596,-524.58,0.00022739,4]
[365370165,1749622241607,-630.46691564,0.00022831,8]
[365370167,1749622241617,-630.46691564,0.00022934,8]
[365370169,1749622241628,-420.0,0.00022942,2]
[365370172,1749622241639,-420.0,0.00022943,2]
[365370174,1749622241649,-951.45,0.00022992,2]
[365370176,1749622241661,-460.0,0.00023013,4]
[365370178,1749622241671,-672.32,0.00023013,4]
[365370180,1749622241682,-254.11812497,0.00023013,4]
[365370182,1749622241693,-739.66,0.00023013,4]
[365370185,1749622241704,-733.27,0.00023013,4]
[365370187,1749622241714,-460.0,0.00023013,4]
[365370189,1749622241725,-1513.67,0.00023013,4]
[365370205,1749622241864,-460.0,0.00023013,4]
[365370208,1749622241880,-547.36,0.00023013,4]
[365370210,1749622241890,-460.0,0.00023013,4]
[365370212,1749622241899,-626.24,0.00023013,4]
[365370214,1749622241909,-1824.46,0.00023013,4]
[365370216,1749622241918,-487.3,0.00023013,4]
[365370218,1749622241928,-460.0,0.00023013,4]
[365370220,1749622241937,-547.88,0.00023013,4]
[365370222,1749622241947,-1140.85,0.00023013,4]
[365370224,1749622241956,-902.14,0.00023013,4]
[365370226,1749622241965,-635.33,0.00023013,4]
[365370228,1749622241975,-460.0,0.00023013,4]
[365370230,1749622241984,-1792.05,0.00023013,4]
[365370232,1749622241994,-460.0,0.00023013,4]
[365370234,1749622242003,-1640.75,0.00023013,4]
[365370236,1749622242013,-1600.24,0.00023013,4]
[365370238,1749622242023,-832.83,0.00023013,4]
[365370240,1749622242032,-460.0,0.00023013,4]
[365370242,1749622242041,-524.58,0.00023013,4]
[365370244,1749622242050,-253.71628389,0.00023034,2]
[365370246,1749622242060,-630.46691564,0.00023038,8]
[365370248,1749622242069,-151.6816467,0.00023134,2]
[365370250,1749622242078,-5000.0,0.00023134,2]
[365370252,1749622242087,-151.70252757,0.00023134,2]
[365370254,1749622242096,-1703.96675958,0.00023134,2]
[365370256,1749622242106,-750.0,0.00023134,2]
[365370258,1749622242115,-500.0,0.00023134,2]
[365370260,1749622242124,-750.0,0.00023134,2]
[365370262,1749622242133,-500.0,0.00023134,2]
[365370264,1749622242143,-500.0,0.00023134,2]
[365370266,1749622242152,-750.0,0.00023134,2]
[365370268,1749622242161,-2025.32447279,0.00023134,2]
[365370270,1749622242170,-750.0,0.00023134,2]
[365370272,1749622242179,-500.0,0.00023134,2]
[365370274,1749622242189,-500.0,0.00023134,2]
[365370276,1749622242198,-750.0,0.00023134,2]
[365370278,1749622242207,-500.0,0.00023134,2]
[365370280,1749622242216,-750.0,0.00023134,2]
[365370282,1749622242225,-500.0,0.00023134,2]
[365370284,1749622242234,-750.0,0.00023134,2]
[365370286,1749622242243,-750.0,0.00023134,2]
[365370288,1749622242253,-500.0,0.00023134,2]
[365370290,1749622242262,-750.0,0.00023134,2]
[365370292,1749622242271,-500.0,0.00023134,2]
[365370294,1749622242280,-774.36179069,0.00023134,2]
[365370296,1749622242289,-500.0,0.00023134,2]
[365370298,1749622242301,-207.4,0.00023134,2]
[365370300,1749622242311,-630.46691564,0.00023141,8]
[365370302,1749622242320,-354.0,0.00023162,2]
[365370305,1749622242331,-264.97096154,0.00023209,2]
[365370308,1749622242342,-630.46691564,0.00023245,8]
[365370310,1749622242351,-500.0,0.00023256,2]
[365370312,1749622242361,-485.77,0.00023287,4]
[365370314,1749622242370,-672.32,0.00023287,4]
[365370316,1749622242380,-739.66,0.00023287,4]
[365370318,1749622242389,-733.27,0.00023287,4]
[365370320,1749622242399,-460.0,0.00023287,4]
[365370322,1749622242408,-1513.67,0.00023287,4]
[365370324,1749622242418,-460.0,0.00023287,4]
[365370326,1749622242427,-547.36,0.00023287,4]
[365370328,1749622242435,-460.0,0.00023287,4]
[365370330,1749622242444,-626.24,0.00023287,4]
[365370332,1749622242453,-1824.46,0.00023287,4]
[365370334,1749622242462,-487.3,0.00023287,4]
[365370336,1749622242471,-460.0,0.00023287,4]
[365370338,1749622242480,-547.88,0.00023287,4]
[365370340,1749622242489,-1140.85,0.00023287,4]
[365370342,1749622242499,-902.14,0.00023287,4]
[365370344,1749622242509,-635.33,0.00023287,4]
[365370346,1749622242519,-460.0,0.00023287,4]
[365370349,1749622242529,-1792.05,0.00023287,4]
[365370351,1749622242539,-460.0,0.00023287,4]
[365370352,1749622242548,-1640.75,0.00023287,4]
[365370355,1749622242559,-1600.24,0.00023287,4]
[365370356,1749622242568,-832.83,0.00023287,4]
[365370359,1749622242578,-460.0,0.00023287,4]
[365370361,1749622242587,-524.58,0.00023287,4]
[365370363,1749622242597,-6260.21643354,0.000233,2]
[365370365,1749622242606,-173.25,0.00023307,2]
[365370366,1749622242615,-630.46691564,0.00023348,9]
[365370368,1749622242625,-253.71628385,0.00023376,2]
[365370370,1749622242634,-15166.74483968,0.000234,7]
[365370372,1749622242644,-15166.74483968,0.000234,7]
[365370374,1749622242653,-844.64040732,0.000234,7]
[365370376,1749622242663,-213.16534259,0.000234,7]
[365370378,1749622242673,-160.0,0.000234,7]
[365370380,1749622242683,-630.46691564,0.00023452,9]
[365370382,1749622242692,-630.46691564,0.00023555,9]
[365370384,1749622242701,-672.32,0.00023561,4]
[365370386,1749622242711,-739.66,0.00023561,4]
[365370388,1749622242720,-733.27,0.00023561,4]
[365370390,1749622242730,-460.0,0.00023561,4]
[365370392,1749622242739,-1513.67,0.00023561,4]
[365370394,1749622242748,-460.0,0.00023561,4]
[365370396,1749622242758,-547.36,0.00023561,4]
[365370398,1749622242767,-460.0,0.00023561,4]
[365370400,1749622242776,-626.24,0.00023561,4]
[365370402,1749622242786,-1824.46,0.00023561,4]
[365370404,1749622242796,-487.3,0.00023561,4]
[365370406,1749622242805,-460.0,0.00023561,4]
[365370408,1749622242814,-547.88,0.00023561,4]
[365370410,1749622242823,-1140.85,0.00023561,4]
[365370412,1749622242833,-902.14,0.00023561,4]
[365370414,1749622242843,-635.33,0.00023561,4]
[365370416,1749622242853,-460.0,0.00023561,4]
[365370418,1749622242862,-1792.05,0.00023561,4]
[365370420,1749622242871,-460.0,0.00023561,4]
[365370422,1749622242881,-1640.75,0.00023561,4]
[365370424,1749622242890,-1600.24,0.00023561,4]
[365370426,1749622242901,-832.83,0.00023561,4]
[365370428,1749622242910,-460.0,0.00023561,4]
[365370430,1749622242920,-524.58,0.00023561,4]
[365370432,1749622242929,-350.84,0.000236,7]
[365370434,1749622242938,-630.46691564,0.00023659,9]
[365370436,1749622242948,-5000.0,0.00023682,2]
[365370438,1749622242959,-253.71628385,0.00023717,2]
[365370440,1749622242969,-630.46691564,0.00023762,9]
[365370442,1749622242978,-264.97096154,0.00023763,2]
[365370444,1749622242988,-3000.0,0.000238,2]
[365370446,1749622242997,-3000.0,0.0002381,2]
[365370448,1749622243007,-3000.0,0.0002382,2]
[365370450,1749622243018,-3000.0,0.0002383,2]
[365370452,1749622243027,-672.32,0.00023835,4]
[365370454,1749622243037,-739.66,0.00023835,4]
[365370456,1749622243046,-733.27,0.00023835,4]
[365370457,1749622243055,-460.0,0.00023835,4]
[365370458,1749622243064,-1513.67,0.00023835,4]
[365370459,1749622243074,-158.09617834,0.00023835,4]
[365370460,1749622243083,-547.36,0.00023835,4]
[365370461,1749622243092,-460.0,0.00023835,4]
[365370462,1749622243102,-626.24,0.00023835,4]
[365370463,1749622243111,-1824.46,0.00023835,4]
[365370464,1749622243120,-487.3,0.00023835,4]
[365370465,1749622243130,-460.0,0.00023835,4]
[365370466,1749622243139,-547.88,0.00023835,4]
[365370467,1749622243148,-1140.85,0.00023835,4]
[365370468,1749622243158,-902.14,0.00023835,4]
[365370469,1749622243168,-635.33,0.00023835,4]
[365370470,1749622243177,-460.0,0.00023835,4]
[365370471,1749622243187,-1792.05,0.00023835,4]
[365370472,1749622243196,-460.0,0.00023835,4]
[365370473,1749622243205,-1640.75,0.00023835,4]
[365370474,1749622243214,-1600.24,0.00023835,4]
[365370475,1749622243223,-832.83,0.00023835,4]
[365370476,1749622243232,-460.0,0.00023835,4]
[365370478,1749622243241,-524.58,0.00023835,4]
[365370480,1749622243250,-3000.0,0.0002384,2]
[365370482,1749622243259,-3000.0,0.0002385,2]
[365370484,1749622243269,-3000.0,0.0002386,2]
[365370486,1749622243278,-630.46691564,0.00023866,10]
[365370488,1749622243287,-3000.0,0.0002387,2]
[365370490,1749622243298,-3000.0,0.0002388,2]
[365370492,1749622243309,-3000.0,0.0002389,2]
[365370494,1749622243318,-3000.0,0.000239,2]
[365370496,1749622243328,-600.0,0.00023904,2]
[365370498,1749622243337,-3000.0,0.0002391,2]
[365370500,1749622243347,-3000.0,0.0002392,2]
[365370502,1749622243356,-3000.0,0.0002393,2]
[365370504,1749622243365,-3000.0,0.0002394,2]
[365370506,1749622243376,-3000.0,0.0002395,2]
[365370508,1749622243385,-1189.31,0.0002395,2]
[365370510,1749622243394,-3000.0,0.0002396,2]
[365370512,1749622243403,-630.46691564,0.00023969,10]
[365370514,1749622243413,-3000.0,0.0002397,2]
[365370516,1749622243422,-3000.0,0.0002398,2]
[365370518,1749622243431,-3000.0,0.0002399,2]
[365370520,1749622243441,-3000.0,0.00024,2]
[365370522,1749622243450,-13918.0,0.00024,2]
[365370524,1749622243460,-202.28223306,0.00024,2]
[365370526,1749622243469,-229.71724145,0.00024,7]
[365370528,1749622243479,-835.03886221,0.00024,7]
[365370530,1749622243488,-424.19973472,0.00024,7]
[365370532,1749622243499,-160.0,0.00024,7]
[365370534,1749622243508,-1257.589503,0.00024009,3]
[365370536,1749622243518,-3000.0,0.0002401,2]
[365370538,1749622243528,-3000.0,0.0002402,2]
[365370540,1749622243537,-3000.0,0.0002403,2]
[365370542,1749622243546,-3000.0,0.0002404,2]
[365370544,1749622243555,-3000.0,0.0002405,2]
[365370546,1749622243565,-253.71628385,0.00024059,2]
[365370548,1749622243574,-3000.0,0.0002406,2]
[365370550,1749622243583,-3000.0,0.0002407,2]
[365370552,1749622243593,-630.46691564,0.00024072,10]
[365370554,1749622243602,-3000.0,0.0002408,2]
[365370556,1749622243611,-6260.21643352,0.00024085,2]
[365370558,1749622243621,-3000.0,0.0002409,2]
[365370560,1749622243630,-3000.0,0.000241,2]
[365370562,1749622243639,-672.32,0.00024109,4]
[365370564,1749622243649,-739.66,0.00024109,4]
[365370566,1749622243658,-733.27,0.00024109,4]
[365370568,1749622243667,-460.0,0.00024109,4]
[365370570,1749622243676,-1513.67,0.00024109,4]
[365370572,1749622243686,-547.36,0.00024109,4]
[365370574,1749622243695,-460.0,0.00024109,4]
[365370576,1749622243708,-626.24,0.00024109,4]
[365370578,1749622243717,-1824.46,0.00024109,4]
[365370580,1749622243727,-487.3,0.00024109,4]
[365370582,1749622243736,-460.0,0.00024109,4]
[365370584,1749622243746,-547.88,0.00024109,4]
[365370586,1749622243757,-1140.85,0.00024109,4]
[365370589,1749622243768,-902.14,0.00024109,4]
[365370591,1749622243778,-635.33,0.00024109,4]
[365370593,1749622243788,-460.0,0.00024109,4]
[365370595,1749622243797,-1792.05,0.00024109,4]
[365370597,1749622243807,-460.0,0.00024109,4]
[365370599,1749622243816,-1640.75,0.00024109,4]
[365370601,1749622243826,-1600.24,0.00024109,4]
[365370603,1749622243836,-832.83,0.00024109,4]
[365370605,1749622243845,-460.0,0.00024109,4]
[365370607,1749622243855,-524.58,0.00024109,4]
[365370609,1749622243864,-3000.0,0.0002411,2]
[365370611,1749622243873,-3000.0,0.0002412,2]
[365370613,1749622243883,-3000.0,0.0002413,2]
[365370615,1749622243892,-3000.0,0.0002414,2]
[365370617,1749622243901,-3000.0,0.0002415,2]
[365370619,1749622243910,-601.74494822,0.00024153,2]
[365370621,1749622243920,-3000.0,0.0002416,2]
[365370623,1749622243929,-244.659,0.00024166,2]
[365370625,1749622243938,-250.0,0.00024166,2]
[365370627,1749622243948,-258.292,0.00024167,2]
[365370629,1749622243957,-214.988,0.00024167,2]
[365370631,1749622243966,-969.196,0.00024167,2]
[365370633,1749622243976,-653.0,0.00024167,2]
[365370635,1749622243985,-2160.0,0.00024167,2]
[365370637,1749622243995,-229.447,0.00024167,2]
[365370639,1749622244004,-405.0,0.00024167,2]
[365370641,1749622244013,-3000.0,0.0002417,2]
[365370643,1749622244023,-630.46691564,0.00024176,10]
[365370645,1749622244032,-3000.0,0.0002418,2]
[365370647,1749622244041,-5005.671559,0.0002419,2]
[365370649,1749622244050,-6434.45288652,0.000242,3]
[365370651,1749622244059,-30354.62,0.000242,2]
[365370653,1749622244069,-5000.0,0.0002423,2]
[365370655,1749622244078,-630.46691564,0.00024279,10]
[365370657,1749622244087,-863.72885951,0.0002429,15]
[365370659,1749622244096,-195.0,0.000243,9]
[365370661,1749622244105,-151.0,0.000243,6]
[365370663,1749622244114,-151.0,0.000243,8]
[365370665,1749622244124,-264.97096154,0.00024316,2]
[365370667,1749622244133,-39450.0,0.0002435,7]
[365370669,1749622244142,-500.0,0.00024373,2]
[365370671,1749622244152,-600.0,0.00024373,2]
[365370673,1749622244161,-500.53643659,0.00024373,2]
[365370675,1749622244170,-500.0,0.00024373,2]
[365370677,1749622244179,-506.16225976,0.00024373,2]
[365370679,1749622244188,-501.56200485,0.00024373,2]
[365370681,1749622244197,-503.96951609,0.00024373,2]
[365370683,1749622244208,-630.46691564,0.00024383,11]
[365370685,1749622244216,-672.32,0.00024383,4]
[365370687,1749622244227,-739.66,0.00024383,4]
[365370689,1749622244236,-733.27,0.00024383,4]
[365370691,1749622244245,-460.0,0.00024383,4]
[365370693,1749622244254,-1513.67,0.00024383,4]
[365370695,1749622244263,-547.36,0.00024383,4]
[365370697,1749622244273,-460.0,0.00024383,4]
[365370699,1749622244282,-626.24,0.00024383,4]
[365370701,1749622244294,-1824.46,0.00024383,4]
[365370703,1749622244307,-487.3,0.00024383,4]
[365370706,1749622244316,-460.0,0.00024383,4]
[365370708,1749622244326,-547.88,0.00024383,4]
[365370710,1749622244335,-1140.85,0.00024383,4]
[365370712,1749622244345,-902.14,0.00024383,4]
[365370714,1749622244355,-635.33,0.00024383,4]
[365370716,1749622244364,-460.0,0.00024383,4]
[365370718,1749622244374,-1792.05,0.00024383,4]
[365370720,1749622244383,-460.0,0.00024383,4]
[365370722,1749622244392,-1640.75,0.00024383,4]
[365370724,1749622244402,-1600.24,0.00024383,4]
[365370726,1749622244412,-832.83,0.00024383,4]
[365370728,1749622244421,-221.42551085,0.00024383,4]
[365370730,1749622244431,-524.58,0.00024383,4]
[365370732,1749622244440,-253.71628385,0.000244,2]
[365370734,1749622244449,-229.71724145,0.000244,7]
[365370736,1749622244459,-835.03886221,0.000244,7]
[365370738,1749622244469,-424.19973472,0.000244,7]
[365370740,1749622244478,-160.0,0.000244,7]
[365370742,1749622244488,-160.0,0.000244,7]
[365370744,1749622244497,-208.04675485,0.00024475,7]
[365370746,1749622244506,-214.3146005,0.00024483,2]
[365370748,1749622244515,-151.0,0.00024483,7]
[365370750,1749622244524,-151.0,0.00024483,7]
[365370752,1749622244533,-556.70875,0.00024483,7]
[365370754,1749622244544,-556.70875,0.00024483,7]
[365370756,1749622244553,-501.75778069,0.00024483,9]
[365370758,1749622244563,-500.0,0.00024483,9]
[365370760,1749622244573,-630.46691564,0.00024486,11]
[365370762,1749622244582,-1745.0,0.00024492,3]
[365370764,1749622244592,-1745.0,0.00024492,3]
[365370766,1749622244601,-1745.0,0.00024492,3]
[365370779,1749622244706,-1745.0,0.00024492,3]
[365370781,1749622244717,-1745.0,0.00024492,3]
[365370783,1749622244726,-171.0,0.00024492,3]
[365370785,1749622244736,-1745.0,0.00024492,3]
[365370787,1749622244746,-1745.0,0.00024492,3]
[365370789,1749622244756,-1745.0,0.00024492,3]
[365370791,1749622244765,-271.03904922,0.00024492,3]
[365370793,1749622244775,-1745.0,0.00024492,3]
[365370795,1749622244784,-1745.0,0.00024492,3]
[365370797,1749622244794,-1745.0,0.00024492,3]
[365370799,1749622244803,-1745.0,0.00024492,3]
[365370801,1749622244813,-155.43081847,0.00024492,3]
[365370803,1749622244823,-1745.0,0.00024492,3]
[365370805,1749622244833,-1745.0,0.00024492,3]
[365370807,1749622244842,-1745.0,0.00024492,3]
[365370809,1749622244852,-1745.0,0.00024492,3]
[365370811,1749622244861,-1745.0,0.00024492,3]
[365370813,1749622244870,-1745.0,0.00024492,3]
[365370815,1749622244880,-1745.0,0.00024492,3]
[365370817,1749622244889,-1745.0,0.00024492,3]
[365370819,1749622244898,-1745.0,0.00024492,3]
[365370821,1749622244908,-151.0,0.00024492,3]
[365370823,1749622244917,-1745.0,0.00024492,3]
[365370825,1749622244926,-1745.0,0.00024492,3]
[365370827,1749622244936,-1030.1030757,0.00024492,3]
[365370829,1749622244945,-152.8942424,0.00024492,3]
[365370831,1749622244954,-317.0,0.00024492,3]
[365370833,1749622244963,-317.0,0.00024492,3]
[365370835,1749622244972,-317.0,0.00024492,3]
[365370837,1749622244981,-317.0,0.00024492,3]
[365370839,1749622244991,-317.0,0.00024492,3]
[365370842,1749622245001,-317.0,0.00024492,3]
[365370844,1749622245010,-317.0,0.00024492,3]
[365370846,1749622245019,-317.0,0.00024492,3]
[365370848,1749622245029,-317.0,0.00024492,3]
[365370850,1749622245038,-317.0,0.00024492,3]
[365370852,1749622245047,-322.24757634,0.00024492,3]
[365370854,1749622245056,-280.4839101,0.00024499,2]
[365370856,1749622245066,-27603.44857242,0.000245,2]
[365370858,1749622245075,-25676.2148099,0.000245,2]
[365370860,1749622245084,-336351.94613485,0.000245,3]
[365370863,1749622245102,-685.88,0.000245,3]
[365370864,1749622245114,-109263.25731308,0.000245,3]
[365370865,1749622245193,-742.14684643,0.000245,3]
[365370923,1749622245826,-460.0,0.00021095,4]
[365370925,1749622245836,-460.0,0.00021369,4]
[365370927,1749622245846,-460.0,0.00021643,4]
[365370929,1749622245856,-460.0,0.00021917,4]
[365370931,1749622245867,-460.0,0.00022191,4]
[365370933,1749622245877,-160.0,0.00022373,2]
[365370935,1749622245887,-182.38,0.00022465,4]
[365370937,1749622245896,-2260.80662958,0.000245,3]
[365370940,1749622245908,-400.0,0.000245,3]
[365370942,1749622245920,-17094.18296425,0.000245,3]
[365372192,1749623301072,160.287833,0.00013699,2]
[365372194,1749623320501,150.999999,0.0002,120]
[365372262,1749623432293,-377.85658625,0.000189,2]
[365372264,1749623432302,-228.8423316,0.000199,2]
[365372266,1749623432311,-300.0,0.00019999,2]
[365372268,1749623432321,-300.0,0.00019999,2]
[365372270,1749623432330,-300.0,0.00019999,2]
[365372272,1749623432340,-1200.0,0.00019999,2]
[365372274,1749623432349,-6234.14047638,0.0002,2]
[365372277,1749623432358,-2685.24042573,0.0002,2]
[365372279,1749623432367,-4060.9585,0.0002,2]
[365372281,1749623432376,-13210.47293723,0.0002,2]
[365372283,1749623432387,-2075.0058395,0.0002,2]